bitfinex-derivatives/quotes_ETHF0:USTF0_20240915
["timestamp","ask_amount","ask_price","bid_price","bid_amount"]
[1726391468845,3.96716216,2416.1,2416.0,1.95629441]
[1726391469045,7.17496216,2416.1,2416.0,1.95629441]
[1726391472853,7.58874216,2416.1,2416.0,1.95629441]
[1726391473154,7.17496216,2416.1,2416.0,1.95629441]
[1726391473553,4.87378,2416.1,2416.0,1.12827899]
[1726391473849,9.01298,2416.1,2416.0,1.12827899]
[1726391474056,9.01298,2416.1,2416.0,0.51750964]
[1726391475358,14.5992,2416.1,2415.7,1.08590447]
[1726391475543,4.3978,2415.8,2415.5,1.18190447]
[1726391475749,4.3978,2415.8,2415.4,1.08590447]
[1726391475750,1.19,2415.6,2415.4,1.08590447]
[1726391476053,2.16909728,2415.5,2415.4,1.49980447]
[1726391476254,2.16909728,2415.5,2415.4,3.91619939]
[1726391476453,3.35909728,2415.6,2415.4,2.83029492]
[1726391476752,3.35909728,2415.6,2415.5,1.43903327]
[1726391478246,3.35909728,2415.6,2415.5,0.61085103]
[1726391478758,1.19,2415.6,2415.5,0.61086423]
[1726391479146,1.19,2415.6,2415.5,0.61086235]
[1726391479351,1.19,2415.6,2415.5,0.82817955]
[1726391479556,2.81522656,2415.6,2415.5,1.65635508]
[1726391479850,2.81522656,2415.6,2415.5,2.26721744]
[1726391480261,2.81522656,2415.6,2415.5,1.43904191]
[1726391481256,1.62522656,2415.6,2415.5,1.43904084]
[1726391482155,1.62522656,2415.6,2415.5,0.82817955]
[1726391483255,4.83302656,2415.6,2415.5,0.82817955]
[1726391483856,1.62522656,2415.6,2415.5,0.82817955]
[1726391484053,4.83302656,2415.6,2415.5,0.82817955]
[1726391486161,4.83302656,2415.6,2415.4,0.7937]
[1726391486162,15.57248,2415.6,2415.1,1.69951668]
[1726391486368,4.81174,2415.2,2415.1,0.61361221]
[1726391486558,7.51820061,2415.2,2415.1,0.51761221]
[1726391486755,0.41395,2415.1,2414.8,0.096]
[1726391487069,6.02052904,2414.9,2414.8,0.096]
[1726391487269,6.02052904,2414.9,2414.5,0.79475]
[1726391487270,4.3978,2414.9,2414.5,0.4767]
[1726391487567,3.2078,2414.6,2414.5,0.89075]
[1726391487770,3.2078,2414.6,2414.5,0.3807]
[1726391488073,3.2078,2414.6,2414.5,0.89085669]
[1726391488267,3.2078,2414.6,2414.5,0.3807]
[1726391490364,3.2078,2414.6,2414.5,0.79476]
[1726391492369,3.2078,2414.6,2414.5,0.3807]
[1726391493569,3.2078,2414.6,2414.5,0.79476]
[1726391501173,0.096,2414.8,2414.6,0.41403]
[1726391501574,0.096,2414.8,2414.7,0.41402]
[1726391501772,3.3038,2414.8,2414.7,0.41402]
[1726391503763,3.689,2414.8,2414.7,0.41402]
[1726391506170,3.3038,2414.8,2414.7,0.41402]
[1726391513584,0.096,2414.8,2414.7,0.41402]
[1726391513776,3.3038,2414.8,2414.7,0.41402]
[1726391515186,0.096,2414.8,2414.7,0.41402]
[1726391515378,3.3038,2414.8,2414.7,0.41402]
[1726391516678,0.096,2414.8,2414.7,0.41402]
[1726391516874,3.3038,2414.8,2414.7,0.41402]
[1726391522897,0.096,2414.8,2414.7,0.41402]
[1726391523395,3.3038,2414.8,2414.7,0.41402]
[1726391526195,0.096,2414.8,2414.7,0.51012874]
[1726391526392,3.3038,2414.8,2414.7,0.51012874]
[1726391526594,3.3038,2414.8,2414.7,0.88772874]
[1726391526791,3.3038,2414.8,2414.7,0.3776]
[1726391527593,3.3038,2414.8,2414.7,0.88773847]
[1726391528193,3.3038,2414.8,2414.7,1.49875638]
[1726391528395,4.92694728,2414.8,2414.7,0.88773847]
[1726391528593,4.92694728,2414.8,2414.7,1.49876396]
[1726391528795,4.92694728,2414.8,2414.7,0.88773847]
[1726391529095,4.92694728,2414.8,2414.7,2.31498695]
[1726391530298,4.92694728,2414.8,2414.7,3.29263533]
[1726391530508,4.92694728,2414.8,2414.7,1.96625761]
[1726391530509,3.3038,2414.8,2414.7,1.96625761]
[1726391530807,3.3038,2414.8,2414.7,4.3128698]
[1726391530993,3.3038,2414.8,2414.7,3.29260526]
[1726391531602,3.3038,2414.8,2414.7,4.37850973]
[1726391532397,5.47641542,2414.8,2414.7,4.37850973]
[1726391533003,5.47652397,2414.8,2414.7,4.37850973]
[1726391533206,3.3038,2414.8,2414.7,4.37850973]
[1726391534099,3.3038,2414.8,2414.7,4.37853025]
[1726391534307,3.3038,2414.8,2414.7,4.37854637]
[1726391534604,3.3038,2414.8,2414.7,4.37854487]
[1726391535605,11.34186061,2414.8,2414.7,1.93739232]
[1726391538009,11.34186061,2414.8,2414.7,1.93742683]
[1726391538609,15.0494,2414.8,2414.7,1.12118266]
[1726391538905,15.0494,2414.8,2414.7,0.51015261]
[1726391539100,18.28977575,2414.8,2414.7,0.51015261]
[1726391539307,15.0494,2414.8,2414.3,1.87999447]
[1726391539507,5.37993152,2414.4,2414.3,1.88071658]
[1726391539704,5.37993152,2414.4,2414.3,7.13303251]
[1726391540009,6.16493152,2414.4,2414.3,7.13303251]
[1726391540196,6.16493152,2414.4,2414.3,7.13303363]
[1726391540404,3.9928,2414.4,2414.3,5.81640972]
[1726391540703,3.9928,2414.4,2414.3,7.13278887]
[1726391541300,3.9928,2414.4,2414.3,4.38194815]
[1726391541501,10.30653152,2414.4,2414.3,4.00194815]
[1726391541708,10.30653152,2414.4,2414.3,4.00200234]
[1726391542308,8.1344,2414.4,2414.3,2.91537576]
[1726391542801,10.30653152,2414.4,2414.3,2.91537576]
[1726391543003,10.30653152,2414.4,2414.3,1.93759562]
[1726391543307,10.30653152,2414.4,2414.3,1.12129836]
[1726391544214,10.30653152,2414.4,2414.3,0.51018578]
[1726391545614,10.30653152,2414.4,2414.3,0.51020152]
[1726391545802,10.30653152,2414.4,2414.3,0.51020162]
[1726391546110,10.30653152,2414.4,2414.3,0.5102017]
[1726391546616,6.16493152,2414.4,2414.3,0.5102017]
[1726391546808,3.2078,2414.4,2414.3,1.02040325]
[1726391547108,3.2078,2414.4,2414.3,0.5102017]
[1726391547306,3.2078,2414.4,2414.3,0.51019587]
[1726391547812,4.83464615,2414.4,2414.3,0.51019587]
[1726391548908,5.24654615,2414.4,2414.3,0.51019587]
[1726391549215,5.24637791,2414.4,2414.3,0.51019587]
[1726391549514,5.24637791,2414.4,2414.2,0.483]
[1726391549814,5.24637791,2414.4,2414.0,1.08662658]
[1726391549815,6.95827791,2414.3,2414.0,1.08662658]
[1726391550018,6.95827791,2414.3,2413.8,2.26631146]
[1726391550019,5.37993152,2414.1,2413.8,0.096]
[1726391550214,2.04042049,2413.9,2413.5,2.18911178]
[1726391550413,4.3978,2413.6,2413.5,0.3926]
[1726391550605,4.3978,2413.6,2413.5,0.51027973]
[1726391550806,8.541,2413.6,2413.5,1.12151102]
[1726391551113,8.541,2413.6,2413.5,0.51027973]
[1726391551307,8.541,2413.6,2413.3,0.3926]
[1726391551511,1.19,2413.4,2413.3,0.3926]
[1726391551714,1.19,2413.4,2413.3,0.9029135]
[1726391551913,5.334,2413.4,2413.3,0.9029135]
[1726391552105,5.7172,2413.4,2413.3,0.9029135]
[1726391552303,7.34345049,2413.4,2413.0,0.5846]
[1726391552604,7.34345049,2413.4,2413.0,0.3926]
[1726391552605,3.2078,2413.1,2413.0,0.3926]
[1726391552910,3.2078,2413.1,2413.0,3.93505883]
[1726391553414,3.2078,2413.1,2413.0,0.92464127]
[1726391553912,3.2078,2413.1,2413.0,1.53497458]
[1726391554216,3.2078,2413.1,2413.0,0.92464127]
[1726391556315,3.2078,2413.1,2413.0,0.41431]
[1726391556912,4.3978,2413.4,2413.0,5.84430618]
[1726391557216,4.3978,2413.4,2413.0,1.70030618]
[1726391557413,4.3978,2413.4,2413.0,1.19]
[1726391557712,4.3978,2413.4,2413.2,0.41427]
[1726391557919,4.3978,2413.4,2413.3,0.776]
[1726391558105,4.3978,2413.4,2413.3,1.1503]
[1726391560206,4.3978,2413.4,2413.3,1.56456]
[1726391560719,4.3978,2413.4,2413.3,1.1503]
[1726391561714,4.3978,2413.4,2413.3,1.56456]
[1726391568018,3.2078,2413.4,2413.3,1.56456]
[1726391568219,0.096,2413.6,2413.5,0.41423]
[1726391568423,1.19,2413.6,2413.5,0.41423]
[1726391571211,3.2078,2413.7,2413.6,0.41421]
[1726391571212,4.3978,2413.7,2413.6,0.41421]
[1726391573321,3.2078,2413.7,2413.6,0.41421]
[1726391573520,4.3978,2413.7,2413.6,0.41421]
[1726391574116,4.3978,2413.7,2413.3,1.1503]
[1726391574117,8.541,2413.7,2413.3,1.1503]
[1726391574322,0.7864,2413.8,2413.6,0.41421]
[1726391574626,3.2078,2413.7,2413.6,0.41421]
[1726391574817,7.351,2413.7,2413.6,0.41421]
[1726391576529,8.541,2413.7,2413.6,0.41421]
[1726391577030,5.3332,2413.7,2413.6,0.41421]
[1726391577215,5.3332,2413.7,2413.5,0.41422]
[1726391577216,8.541,2413.7,2413.5,0.41422]
[1726391577421,1.19,2413.6,2413.5,0.41421]
[1726391578224,11.3332,2413.6,2413.0,0.096]
[1726391578419,1.19,2413.1,2413.0,0.41431]
[1726391578917,4.3978,2413.2,2413.0,0.41431]
[1726391579720,4.3978,2413.2,2412.9,0.81732]
[1726391580630,4.3978,2413.2,2413.0,0.41431]
[1726391580824,4.3978,2413.2,2412.9,0.81732]
[1726391581216,1.19,2413.0,2412.9,0.81732]
[1726391581419,1.19,2413.0,2412.7,0.408]
[1726391581420,1.19,2413.0,2412.7,0.41436]
[1726391581624,4.3978,2412.9,2412.7,0.81356]
[1726391581823,4.3978,2412.9,2412.8,0.41435]
[1726391582426,8.5426,2412.9,2412.7,0.81356]
[1726391582725,4.3978,2412.9,2412.7,0.3992]
[1726391583431,4.3978,2412.9,2412.5,0.4123]
[1726391583628,4.3978,2412.6,2412.5,1.2019]
[1726391584131,3.2078,2412.6,2412.5,1.2019]
[1726391584527,0.096,2413.0,2412.5,1.2019]
[1726391584528,4.3978,2412.9,2412.5,1.9775]
[1726391584726,4.3978,2412.9,2412.6,0.41438]
[1726391585520,1.19,2412.8,2412.6,0.41438]
[1726391587235,1.19,2412.8,2412.7,0.41436]
[1726391588418,1.19,2412.8,2412.6,0.41437]
[1726391588831,1.19,2412.8,2412.7,0.3916]
[1726391589228,1.19,2412.8,2412.7,0.80596]
[1726391589529,3.2078,2412.9,2412.8,0.41435]
[1726391594231,3.2078,2412.9,2412.8,0.92471117]
[1726391596543,1.19,2413.0,2412.8,0.92471117]
[1726391596737,1.19,2413.0,2412.9,0.78953]
[1726391596937,4.3978,2413.0,2412.9,0.88556157]
[1726391597843,4.3978,2413.0,2412.9,0.3752]
[1726391599045,4.3978,2413.0,2412.9,0.88555402]
[1726391599543,4.3978,2413.0,2412.9,0.3752]
[1726391602546,3.2078,2413.0,2412.9,0.3752]
[1726391603734,3.2078,2413.0,2412.1,0.112]
[1726391603735,5.18063,2412.9,2412.1,0.112]
[1726391603941,4.3978,2412.2,2411.7,0.096]
[1726391604148,2.16360763,2412.3,2411.7,0.096]
[1726391604149,4.3978,2411.8,2411.7,1.08662658]
[1726391604435,1.19,2411.8,2411.7,0.61056537]
[1726391604641,1.19,2411.8,2411.7,2.11173195]
[1726391604844,3.2078,2412.1,2412.0,0.41449]
[1726391605035,4.3978,2412.1,2412.0,2.1109015]
[1726391605242,4.3978,2412.1,2412.0,1.08662658]
[1726391606153,1.19,2412.1,2412.0,1.08662658]
[1726391606537,4.3978,2412.1,2412.0,1.08662658]
[1726391610751,4.3978,2412.1,2412.0,1.50111658]
[1726391611145,4.3978,2412.1,2412.0,1.08662658]
[1726391611538,4.3978,2412.1,2412.0,1.50111658]
[1726391612150,3.2078,2412.1,2412.0,1.50111658]
[1726391612355,1.19,2412.2,2412.1,0.41447]
[1726391612745,4.3978,2412.2,2412.1,1.50109658]
[1726391613546,3.2078,2412.2,2412.1,1.50109658]
[1726391613855,4.3978,2412.2,2412.1,1.08662658]
[1726391615350,4.3978,2412.2,2412.1,1.50109658]
[1726391615850,4.3978,2412.2,2412.1,1.08662658]
[1726391618063,8.5434,2412.2,2411.8,0.806]
[1726391618352,4.3978,2411.9,2411.8,0.806]
[1726391619253,4.3978,2411.9,2411.8,0.4044]
[1726391620051,3.2078,2411.9,2411.8,0.4044]
[1726391620259,4.3978,2411.9,2411.8,0.4044]
[1726391631458,4.3978,2411.9,2411.8,0.81892]
[1726391633571,3.2078,2411.9,2411.8,0.81892]
[1726391634365,3.2078,2412.2,2412.1,0.41447]
[1726391634561,4.3978,2412.2,2412.1,0.41447]
[1726391638260,3.2078,2412.5,2412.4,0.41441]
[1726391638465,1.19,2412.7,2412.5,0.41439]
[1726391638775,3.8482,2412.9,2412.6,0.3901]
[1726391639074,1.19,2412.7,2412.6,0.3901]
[1726391639574,3.2078,2412.9,2412.7,0.41436]
[1726391639759,1.19,2412.8,2412.7,0.41435]
[1726391640365,1.19,2412.8,2412.6,0.80447]
[1726391642671,1.19,2412.7,2412.6,0.80447]
[1726391642879,1.19,2412.7,2412.6,0.3901]
[1726391643779,1.19,2412.7,2412.6,4.5349]
[1726391644268,1.19,2412.7,2412.6,0.3901]
[1726391647380,1.19,2412.7,2412.6,0.80448]
[1726391648578,1.19,2412.7,2412.6,0.3901]
[1726391652602,1.19,2412.7,2412.4,0.41441]
[1726391652777,1.19,2412.6,2412.4,0.41441]
[1726391654083,1.19,2412.6,2412.5,0.3933]
[1726391662478,3.6012,2412.7,2412.5,0.8077]
[1726391662680,3.6012,2412.7,2412.5,0.4144]
[1726391662882,3.6012,2412.7,2412.6,0.8077]
[1726391663880,0.3934,2412.7,2412.6,0.8077]
[1726391668490,5.0441,2412.8,2412.6,0.8077]
[1726391668491,4.3978,2412.8,2412.6,0.8077]
[1726391668693,4.3978,2412.8,2412.7,0.3974]
[1726391668987,4.3978,2412.8,2412.6,0.8077]
[1726391671094,4.6574,2412.8,2412.6,0.8077]
[1726391673693,6.27624437,2412.8,2412.6,0.8077]
[1726391673898,4.6574,2412.8,2412.6,0.8077]
[1726391674292,4.3978,2412.8,2412.6,0.8077]
[1726391674493,6.01664437,2412.8,2412.6,0.8077]
[1726391675098,1.61884437,2412.7,2412.6,0.8077]
[1726391675296,6.01664437,2412.8,2412.6,0.8077]
[1726391675598,1.61884437,2412.7,2412.3,0.81183]
[1726391675899,4.3978,2412.5,2412.4,1.88291438]
[1726391676297,4.3978,2412.5,2412.4,1.79554064]
[1726391676598,4.3978,2412.5,2412.4,1.3811182]
[1726391676989,4.3978,2412.5,2412.4,2.68577691]
[1726391677500,1.19,2412.5,2412.4,2.68577691]
[1726391677693,4.3978,2412.5,2412.4,2.68577691]
[1726391677891,1.19,2412.5,2412.4,2.68577691]
[1726391678699,1.19,2412.5,2412.4,3.64468539]
[1726391679702,1.19,2412.5,2412.4,4.9463161]
[1726391681399,1.19,2412.5,2412.4,5.949901]
[1726391681589,1.19,2412.5,2412.4,7.56293345]
[1726391681991,1.19,2412.5,2412.4,9.19288946]
[1726391682194,1.19,2412.5,2412.4,8.77846946]
[1726391682594,1.19,2412.5,2412.4,7.14851345]
[1726391682794,1.19,2412.5,2412.4,7.14916668]
[1726391683592,1.19,2412.5,2412.4,7.80871952]
[1726391683798,1.19,2412.5,2412.4,7.14909439]
[1726391684802,1.19,2412.5,2412.4,8.77982383]
[1726391685199,1.61884437,2412.6,2412.4,9.19424383]
[1726391685496,1.61884437,2412.6,2412.5,7.99803926]
[1726391685690,2.80884437,2412.7,2412.5,7.99802912]
[1726391685892,2.80884437,2412.7,2412.6,5.16868194]
[1726391686500,2.80884437,2412.7,2412.6,3.61045526]
[1726391686697,2.81665219,2412.7,2412.6,3.36222887]
[1726391687007,1.19,2412.7,2412.6,3.86632548]
[1726391687204,1.19,2412.7,2412.6,4.16543536]
[1726391687505,2.81670707,2412.7,2412.6,5.16899674]
[1726391687804,1.62670707,2412.7,2412.6,6.79972618]
[1726391688102,2.81670707,2412.7,2412.6,6.79972618]
[1726391688296,2.81670707,2412.7,2412.6,5.16899674]
[1726391688496,2.81670707,2412.7,2412.6,6.79972618]
[1726391688904,1.19,2412.7,2412.6,5.16899674]
[1726391690008,1.19,2412.7,2412.6,2.86085221]
[1726391690212,1.19,2412.7,2412.6,4.36618627]
[1726391690407,1.19,2412.7,2412.6,7.47720991]
[1726391690901,1.19,2412.7,2412.6,7.47721009]
[1726391691097,1.19,2412.7,2412.6,7.47730217]
[1726391692509,1.19,2412.7,2412.6,7.47734088]
[1726391693403,1.19,2412.7,2412.6,5.9191516]
[1726391693711,1.19,2412.7,2412.6,7.47733797]
[1726391693902,2.81706506,2412.7,2412.6,7.54988104]
[1726391694100,2.81706506,2412.7,2412.6,7.80344495]
[1726391694307,2.81706506,2412.7,2412.6,9.6098428]
[1726391694818,2.81706506,2412.7,2412.6,9.10806397]
[1726391695605,2.81706506,2412.7,2412.6,9.48156397]
[1726391696407,6.02486506,2412.7,2412.6,9.48156397]
[1726391696913,6.02486506,2412.7,2412.6,7.92337726]
[1726391697113,6.02486506,2412.7,2412.6,6.21450401]
[1726391697413,6.02486506,2412.7,2412.6,7.17349156]
[1726391697607,6.02486506,2412.7,2412.6,9.48166493]
[1726391698709,2.81706506,2412.7,2412.6,9.48166493]
[1726391698912,6.02486506,2412.7,2412.6,9.48166493]
[1726391699414,6.02486506,2412.7,2412.6,7.17348604]
[1726391700506,6.02486506,2412.7,2412.6,5.6153014]
[1726391700709,6.02486506,2412.7,2412.6,6.26745235]
[1726391700904,6.02486506,2412.7,2412.6,7.27272]
[1726391701109,6.02486506,2412.7,2412.6,7.7727886]
[1726391701304,6.02496049,2412.7,2412.6,7.7727886]
[1726391701515,4.3978,2412.7,2412.6,7.7727886]
[1726391702709,4.3978,2412.7,2412.6,6.21460898]
[1726391702908,4.3978,2412.7,2412.6,4.50574537]
[1726391703117,4.3978,2412.7,2412.6,5.46462959]
[1726391703422,4.3978,2412.7,2412.6,7.7281354]
[1726391703818,6.02495205,2412.7,2412.6,7.7281354]
[1726391704020,6.02495205,2412.7,2412.6,10.080982]
[1726391704314,4.3978,2412.7,2412.6,8.27458235]
[1726391704526,4.3978,2412.7,2412.6,11.08453357]
[1726391704815,4.3978,2412.7,2412.6,11.58631058]
[1726391705414,4.3978,2412.7,2412.6,12.38915376]
[1726391705733,4.3978,2412.7,2412.6,12.38920433]
[1726391707621,1.19,2412.7,2412.6,12.38920433]
[1726391707924,4.3978,2412.7,2412.6,12.38920433]
[1726391709220,6.55625916,2412.7,2412.6,10.75847489]
[1726391709422,6.55625916,2412.7,2412.6,4.83916172]
[1726391709622,6.55625916,2412.7,2412.6,0.97280806]
[1726391709818,5.36625916,2412.7,2412.6,1.93170095]
[1726391710015,6.55625916,2412.7,2412.6,1.93170095]
[1726391710216,6.55625916,2412.7,2412.6,3.23633345]
[1726391710418,6.55625916,2412.7,2412.6,2.86283345]
[1726391710723,7.21155916,2412.7,2412.6,2.86283345]
[1726391711516,5.0531,2412.7,2412.6,2.86283345]
[1726391713520,5.0531,2412.7,2412.6,2.86291065]
[1726391713728,5.0531,2412.7,2412.6,5.72582301]
[1726391714226,5.0531,2412.7,2412.6,4.76689991]
[1726391714524,5.0531,2412.7,2412.6,5.72583614]
[1726391715222,5.0531,2412.7,2412.6,5.72582702]
[1726391716327,5.0531,2412.7,2412.6,3.46223758]
[1726391716531,5.0531,2412.7,2412.6,4.76690907]
[1726391718025,1.8453,2412.7,2412.6,4.76690907]
[1726391718225,5.0531,2412.7,2412.6,4.76690907]
[1726391718820,4.3978,2412.7,2412.6,5.18128907]
[1726391719023,5.37710344,2412.7,2412.6,6.1402111]
[1726391719221,1.62701602,2412.8,2412.6,12.85318391]
[1726391719420,1.62701602,2412.8,2412.7,8.80238712]
[1726391719626,2.81701602,2412.8,2412.7,9.18238712]
[1726391719827,2.81701602,2412.8,2412.7,8.76777013]
[1726391720227,1.62701602,2412.8,2412.7,8.76777013]
[1726391720429,1.19,2412.8,2412.7,8.76777013]
[1726391720836,2.81701602,2412.8,2412.7,8.76777013]
[1726391721428,2.81701602,2412.8,2412.7,7.56918652]
[1726391723136,2.81701602,2412.8,2412.7,5.26075575]
[1726391723335,2.81701602,2412.8,2412.7,5.76250557]
[1726391723537,2.81701602,2412.8,2412.7,7.56880494]
[1726391724540,2.81701602,2412.8,2412.7,7.56844211]
[1726391726632,2.81701602,2412.8,2412.7,6.01037112]
[1726391726840,2.81701602,2412.8,2412.7,5.26039955]
[1726391727042,2.81701602,2412.8,2412.7,7.56844906]
[1726391727530,1.19,2412.8,2412.7,7.56844906]
[1726391727939,2.81701602,2412.8,2412.7,7.56844906]
[1726391728139,2.81701602,2412.8,2412.7,7.98280906]
[1726391728331,1.19,2412.8,2412.7,7.98280906]
[1726391728831,1.62701602,2412.9,2412.8,0.41435]
[1726391729037,1.62701602,2413.0,2412.9,0.41433]
[1726391729241,1.62701602,2413.0,2412.9,4.91470979]
[1726391729439,0.096,2413.3,2413.2,0.41428]
[1726391729638,3.35930344,2413.5,2413.3,0.41425]
[1726391729846,3.35930344,2413.5,2413.4,1.00574758]
[1726391730035,3.35930344,2413.5,2413.4,1.00566862]
[1726391730233,3.35930344,2413.5,2413.4,1.50734528]
[1726391730436,3.35930344,2413.5,2413.4,1.92158528]
[1726391730632,3.35930344,2413.5,2413.4,2.72426896]
[1726391730633,1.19,2413.5,2413.4,2.72426896]
[1726391730935,1.19,2413.5,2413.4,3.39628701]
[1726391731135,1.19,2413.5,2413.4,2.59360333]
[1726391731339,1.19,2413.5,2413.4,1.50734528]
[1726391732239,1.19,2413.5,2413.4,1.92158528]
[1726391732742,4.3978,2413.6,2413.4,6.87128528]
[1726391732942,4.3978,2413.6,2413.5,0.50167666]
[1726391733244,4.3978,2413.6,2413.4,1.62724]
[1726391735545,4.3978,2413.6,2413.5,0.41423]
[1726391735750,4.3978,2413.6,2413.4,1.62724]
[1726391735947,4.3978,2413.6,2413.5,0.41423]
[1726391736552,3.5989,2414.0,2413.5,5.834861]
[1726391736747,4.3978,2414.0,2413.7,0.41418]
[1726391736943,4.3978,2414.0,2413.8,0.811]
[1726391737144,4.3978,2414.0,2413.8,1.1846]
[1726391739043,4.3978,2414.0,2413.9,0.41416]
[1726391739044,3.2078,2414.0,2413.9,0.41416]
[1726391739242,3.2078,2414.0,2413.9,1.60416]
[1726391740252,3.4008,2414.4,2413.9,1.60416]
[1726391740458,1.19,2414.2,2414.0,0.41414]
[1726391743447,4.3978,2414.4,2414.0,1.60414]
[1726391746259,1.19,2414.3,2413.9,1.60415]
[1726391746554,1.19,2414.1,2413.9,0.41415]
[1726391746761,0.3843,2414.0,2413.9,0.41415]
[1726391747258,0.3843,2414.0,2413.9,4.55655]
[1726391747657,0.3843,2414.0,2413.8,1.59876]
[1726391747856,0.3843,2414.0,2413.9,0.41416]
[1726391750163,1.5743,2414.0,2413.8,0.7715]
[1726391750363,1.5743,2414.0,2413.8,0.3736]
[1726391752358,1.5743,2414.0,2413.8,0.78777]
[1726391752560,1.5743,2414.0,2413.8,0.3736]
[1726391753163,4.7821,2414.0,2413.8,0.3736]
[1726391753765,4.7821,2414.0,2413.8,0.78777]
[1726391754261,1.19,2413.9,2413.8,0.3736]
[1726391754466,1.4494,2413.9,2413.8,0.3736]
[1726391755665,1.4494,2413.9,2413.6,0.3868]
[1726391755872,4.3978,2413.7,2413.4,0.90433]
[1726391756164,0.7901,2413.6,2413.4,1.99243]
[1726391757370,0.7901,2413.6,2413.4,1.5782]
[1726391758365,0.7901,2413.6,2413.4,1.99244]
[1726391768363,0.4112,2413.6,2413.4,1.99244]
[1726391768569,0.4112,2413.6,2413.5,0.3797]
[1726391771371,4.8007,2413.8,2413.5,0.7897]
[1726391771976,1.5929,2413.8,2413.5,0.7897]
[1726391772280,4.8007,2413.8,2413.5,0.7897]
[1726391773973,1.5929,2413.8,2413.5,0.7897]
[1726391774165,1.5929,2413.8,2413.6,0.50164815]
[1726391774166,4.8007,2413.8,2413.6,0.50164815]
[1726391774366,4.8007,2413.8,2413.5,0.7897]
[1726391774578,1.5929,2413.8,2413.6,0.5016479]
[1726391774874,1.5929,2413.8,2413.5,0.7897]
[1726391774875,4.8007,2413.8,2413.5,0.7897]
[1726391775172,4.8007,2413.8,2413.6,0.5016479]
[1726391775370,4.8007,2413.8,2413.5,0.7897]
[1726391775566,1.5929,2413.8,2413.5,0.7897]
[1726391775767,4.8007,2413.8,2413.5,0.7897]
[1726391776277,4.8007,2413.8,2413.6,0.50164786]
[1726391776473,4.8007,2413.8,2413.5,0.7897]
[1726391776674,4.8007,2413.8,2413.6,0.50164776]
[1726391776874,1.5929,2413.8,2413.5,0.7897]
[1726391777075,1.5929,2413.8,2413.6,1.10075228]
[1726391777279,1.5929,2413.8,2413.5,0.7897]
[1726391777569,4.8007,2413.8,2413.6,1.1007525]
[1726391777776,4.8007,2413.8,2413.7,0.50164782]
[1726391778774,3.6107,2413.8,2413.7,0.50164782]
[1726391778978,3.6107,2413.8,2413.7,1.10073178]
[1726391779278,3.6107,2413.8,2413.7,1.51343178]
[1726391782477,1.5747,2414.0,2413.7,1.51343178]
[1726391782679,3.2078,2413.8,2413.7,0.4127]
[1726391782884,3.2078,2413.8,2413.7,1.51341398]
[1726391784583,3.2078,2413.8,2413.7,3.92020438]
[1726391784980,3.2078,2413.8,2413.7,5.00646243]
[1726391785177,3.2078,2413.8,2413.7,5.96496349]
[1726391785482,0.3847,2414.0,2413.8,0.41416]
[1726391785671,3.2078,2414.2,2413.9,2.72397715]
[1726391785878,3.2078,2414.2,2414.0,0.3772]
[1726391786073,3.2078,2414.2,2414.0,0.87880009]
[1726391786274,3.2078,2414.2,2414.1,0.50160009]
[1726391789086,3.2078,2414.2,2414.0,1.98133]
[1726391789480,3.2078,2414.2,2414.1,1.69958998]
[1726391789785,3.2078,2414.2,2414.1,1.60216805]
[1726391790178,3.2078,2414.2,2414.1,1.60216804]
[1726391790382,3.2078,2414.2,2414.1,2.01628804]
[1726391790883,2.00017676,2414.3,2414.1,1.60216804]
[1726391791079,2.00017676,2414.3,2414.0,3.06758805]
[1726391791080,2.00017676,2414.3,2414.2,0.50158195]
[1726391792981,2.02057676,2414.4,2414.2,1.10057144]
[1726391793283,2.02057676,2414.4,2414.3,0.50158195]
[1726391793579,1.62327676,2414.4,2414.3,0.50158195]
[1726391793783,1.62327676,2414.4,2414.3,1.69158195]
[1726391794179,7.38540344,2414.6,2414.3,1.69158195]
[1726391794180,1.62327676,2414.5,2414.3,2.86738195]
[1726391794379,1.62327676,2414.5,2414.3,2.3658]
[1726391796187,1.62327676,2414.5,2414.3,2.77989]
[1726391796500,1.62327676,2414.5,2414.4,1.60407]
[1726391796789,2.95737395,2414.8,2414.4,1.60407]
[1726391796790,2.00467676,2414.8,2414.5,0.41406]
[1726391796982,2.00467676,2414.8,2414.5,2.69031805]
[1726391796983,0.3814,2414.8,2414.5,2.69031805]
[1726391797183,0.3814,2414.8,2414.6,0.79444]
[1726391797391,0.3814,2414.8,2414.6,1.29594902]
[1726391797594,0.3814,2414.8,2414.6,0.79444]
[1726391797886,0.3814,2414.8,2414.6,1.39334689]
[1726391799082,3.2078,2414.9,2414.7,1.60401]
[1726391799392,1.9508,2415.1,2414.8,0.414]
[1726391799584,1.9508,2415.1,2414.9,0.3745]
[1726391799895,0.7608,2415.1,2414.9,1.5645]
[1726391800786,3.2078,2415.2,2415.0,1.19]
[1726391801089,3.2078,2415.2,2414.9,0.3745]
[1726391801090,3.2078,2415.2,2415.1,1.19]
[1726391801394,3.2078,2415.2,2415.0,1.19]
[1726391802589,3.2078,2415.2,2415.1,1.19]
[1726391802790,1.9731,2415.3,2415.1,1.19]
[1726391802993,1.9731,2415.3,2415.0,1.19]
[1726391803186,1.9731,2415.3,2415.0,1.60397]
[1726391811288,1.19,2415.1,2414.8,0.414]
[1726391811489,3.2078,2414.9,2414.8,0.414]
[1726391811895,3.993,2414.9,2414.8,0.414]
[1726391812101,0.7852,2414.9,2414.8,0.414]
[1726391812497,3.993,2414.9,2414.8,0.414]
[1726391813697,3.993,2414.9,2414.7,1.18911]
[1726391813698,0.7852,2414.9,2414.7,1.18911]
[1726391814197,3.993,2414.9,2414.7,1.18911]
[1726391814399,0.7852,2414.9,2414.7,1.18911]
[1726391814798,3.993,2414.9,2414.7,1.18911]
[1726391815997,0.7852,2414.9,2414.7,1.18911]
[1726391817105,3.993,2414.9,2414.7,1.18911]